fUSD/lending_fUSD_20240502
["ID","MTS","AMOUNT","RATE_DAILY","PERIOD"]
[325286653,1714681883132,-743.51,0.00030958,2]
[325286654,1714681883141,-670.97,0.00030958,2]
[325286655,1714681883150,-500.0,0.00030958,2]
[325286656,1714681883159,-10041.45,0.00030958,2]
[325286657,1714681883169,-957.98,0.00030958,2]
[325286658,1714681883178,-500.0,0.00030958,2]
[325286659,1714681883188,-500.0,0.00030958,2]
[325286660,1714681883197,-1248.49,0.00030958,2]
[325286661,1714681883206,-1104.87,0.00030958,2]
[325286662,1714681883215,-500.0,0.00030958,2]
[325286663,1714681883225,-1447.63,0.00030958,2]
[325286664,1714681883236,-1315.59,0.00030958,2]
[325286665,1714681883245,-2882.26,0.00030958,2]
[325286666,1714681883255,-621.52,0.00030958,2]
[325286667,1714681883264,-6170.13,0.00030958,2]
[325286668,1714681883273,-624.98,0.00030958,2]
[325286669,1714681883283,-5408.71,0.00030958,2]
[325286670,1714681883293,-500.0,0.00030958,2]
[325286671,1714681883305,-500.0,0.00030958,2]
[325286672,1714681883316,-886.47,0.00030958,2]
[325286673,1714681883326,-1889.47,0.00030958,2]
[325286674,1714681883335,-500.0,0.00030958,2]
[325286675,1714681883344,-500.0,0.00030958,2]
[325286676,1714681883354,-2241.16,0.00030958,2]
[325286677,1714681883363,-500.0,0.00030958,2]
[325286678,1714681883372,-16696.29,0.00030958,2]
[325286679,1714681883382,-500.0,0.00030958,2]
[325286680,1714681883392,-864.0,0.00030958,2]
[325286681,1714681883401,-2391.69,0.00030958,2]
[325286682,1714681883410,-500.0,0.00030958,2]
[325286683,1714681883420,-1405.7,0.00030958,2]
[325286684,1714681883430,-500.0,0.00030958,2]
[325286685,1714681883442,-12717.01,0.00030958,2]
[325286686,1714681883452,-500.0,0.00030958,2]
[325286687,1714681883461,-930.73,0.00030958,2]
[325286688,1714681883471,-3478.78,0.00030958,2]
[325286689,1714681883481,-2984.22,0.00030958,2]
[325286690,1714681883491,-500.0,0.00030958,2]
[325286691,1714681883500,-1474.56,0.00030958,2]
[325286692,1714681883510,-3152.5,0.00030958,2]
[325286693,1714681883519,-1153.79,0.00030958,2]
[325286694,1714681883530,-2984.38,0.00030958,2]
[325286695,1714681883540,-4613.08,0.00030958,2]
[325286696,1714681883549,-11153.98,0.00030958,2]
[325286697,1714681883559,-500.0,0.00030958,2]
[325286698,1714681883568,-500.0,0.00030958,120]
[325286699,1714681883577,-1355.56,0.00030958,2]
[325286700,1714681883586,-6121.22,0.00030958,2]
[325286701,1714681883595,-1592.65,0.00030958,2]
[325286702,1714681883605,-931.07,0.00030958,2]
[325286703,1714681883695,-1764.06,0.00030958,2]
[325286704,1714681883705,-500.0,0.00030958,2]
[325286705,1714681883714,-56665.22,0.00030958,2]
[325286706,1714681883723,-500.0,0.00030958,2]
[325286707,1714681883732,-2027.18,0.00030958,2]
[325286708,1714681883742,-500.0,0.00030958,2]
[325286709,1714681883751,-1644.34,0.00030958,2]
[325286710,1714681883760,-816.89,0.00030958,2]
[325286711,1714681883770,-1305.28,0.00030958,2]
[325286712,1714681883779,-500.0,0.00030958,2]
[325286713,1714681883788,-724.92,0.00030958,2]
[325286714,1714681883797,-1000.64,0.00030958,2]
[325286715,1714681883806,-500.0,0.00030958,2]
[325286716,1714681883816,-2579.81,0.00030958,2]
[325286717,1714681883825,-500.0,0.00030958,2]
[325286718,1714681883834,-19488.0,0.00030958,2]
[325286719,1714681883844,-500.0,0.00030958,2]
[325286720,1714681883853,-2353.8,0.00030958,2]
[325286721,1714681883862,-3407.69,0.00030958,2]
[325286722,1714681883872,-500.0,0.00030958,2]
[325286723,1714681883882,-1445.63,0.00030958,2]
[325286724,1714681883891,-2730.1,0.00030958,2]
[325286725,1714681883900,-500.0,0.00030958,2]
[325286726,1714681883909,-1326.95,0.00030958,2]
[325286727,1714681883918,-3684.46,0.00030958,2]
[325286728,1714681883927,-1407.38,0.00030958,2]
[325286729,1714681883936,-2950.3,0.00030958,2]
[325286730,1714681883945,-500.0,0.00030958,2]
[325286731,1714681883954,-6635.61,0.00030958,2]
[325286732,1714681883963,-1389.62,0.00030958,2]
[325286733,1714681883972,-832.11,0.00030958,2]
[325286734,1714681883982,-4775.38,0.00030958,2]
[325286735,1714681883991,-500.0,0.00030958,2]
[325286736,1714681884000,-500.0,0.00030958,2]
[325286737,1714681884009,-500.0,0.00030958,2]
[325286738,1714681884017,-3939.2,0.00030958,2]
[325286739,1714681884027,-3783.87,0.00030958,2]
[325286740,1714681884035,-2404.14,0.00030958,2]
[325286741,1714681884045,-21870.94,0.00030958,2]
[325286742,1714681884054,-2729.07,0.00030958,2]
[325286743,1714681884063,-19516.19,0.00030958,2]
[325286744,1714681884072,-869.4,0.00030958,2]
[325286745,1714681884081,-500.0,0.00030958,2]
[325286746,1714681884091,-517.34,0.00030958,2]
[325286747,1714681884100,-2624.47,0.00030958,2]
[325286748,1714681884109,-1243.99,0.00030958,2]
[325286749,1714681884119,-500.0,0.00030958,2]
[325286750,1714681884128,-500.0,0.00030958,2]
[325286751,1714681884137,-5145.48,0.00030958,2]
[325286752,1714681884146,-2123.66,0.00030958,2]
[325286753,1714681884155,-3200.75,0.00030958,2]
[325286754,1714681884165,-3686.18,0.00030958,2]
[325286755,1714681884174,-602.64,0.00030958,2]
[325286756,1714681884183,-500.0,0.00030958,2]
[325286757,1714681884192,-7419.83,0.00030958,2]
[325286758,1714681884201,-500.0,0.00030958,2]
[325286759,1714681884210,-500.0,0.00030958,2]
[325286760,1714681884219,-12525.99,0.00030958,2]
[325286761,1714681884227,-530.03,0.00030958,2]
[325286762,1714681884238,-3637.96,0.00030958,2]
[325286763,1714681884248,-1681.11,0.00030958,2]
[325286764,1714681884258,-500.0,0.00030958,2]
[325286765,1714681884267,-2388.09,0.00030958,2]
[325286766,1714681884276,-14442.19,0.00030958,2]
[325286767,1714681884285,-500.0,0.00030958,2]
[325286768,1714681884295,-1534.31,0.00030958,2]
[325286769,1714681884303,-3598.38,0.00030958,2]
[325286770,1714681884312,-3171.68,0.00030958,2]
[325286771,1714681884322,-990.57,0.00030958,2]
[325286772,1714681884331,-1400.03,0.00030958,2]
[325286773,1714681884341,-633.22,0.00030958,2]
[325286774,1714681884352,-500.0,0.00030958,2]
[325286775,1714681884362,-1177.76,0.00030958,2]
[325286776,1714681884377,-3979.26,0.00030958,2]
[325286777,1714681884387,-770.74,0.00030958,2]
[325286778,1714681884397,-4142.48,0.00030958,2]
[325286779,1714681884408,-525.65,0.00030958,2]
[325286780,1714681884420,-2078.63,0.00030958,2]
[325286781,1714681884430,-2926.57,0.00030958,2]
[325286782,1714681884443,-794.4,0.00030958,2]
[325286783,1714681884458,-5474.38,0.00030958,2]
[325286784,1714681884468,-500.0,0.00030958,2]
[325286785,1714681884478,-2160.8,0.00030958,2]
[325286786,1714681884488,-813.35,0.00030958,2]
[325286787,1714681884499,-6746.41,0.00030958,2]
[325286788,1714681884510,-11817.94,0.00030958,2]
[325286789,1714681884521,-500.0,0.00030958,2]
[325286790,1714681884531,-1979.43,0.00030958,2]
[325286791,1714681884554,-1422.58,0.00030958,2]
[325286792,1714681884566,-1207.73,0.00030958,2]
[325286793,1714681884577,-2847.05,0.00030958,2]
[325286794,1714681884587,-500.0,0.00030958,2]
[325286795,1714681884598,-3125.77,0.00030958,2]
[325286796,1714681884609,-2615.16,0.00030958,2]
[325286797,1714681884625,-500.0,0.00030958,2]
[325286798,1714681884637,-3144.37,0.00030958,2]
[325286799,1714681884652,-2006.13,0.00030958,2]
[325286800,1714681884664,-6324.12,0.00030958,2]
[325286801,1714681884674,-500.0,0.00030958,2]
[325286802,1714681884686,-1235.85,0.00030958,2]
[325286803,1714681884696,-602.03,0.00030958,2]
[325286804,1714681884707,-567.41,0.00030958,2]
[325286805,1714681884718,-1040.65,0.00030958,2]
[325286806,1714681884729,-1004.63,0.00030958,2]
[325286807,1714681884740,-11567.64,0.00030958,2]
[325286808,1714681884758,-2024.67,0.00030958,2]
[325286809,1714681884769,-616.99,0.00030958,2]
[325286810,1714681884780,-1808.86,0.00030958,2]
[325286811,1714681884791,-924.46,0.00030958,2]
[325286812,1714681884802,-293.380816,0.00030958,7]
[325286813,1714681884814,-6672.78,0.00030958,2]
[325286814,1714681884824,-4278.97,0.00030958,2]
[325286815,1714681884834,-1002.68,0.00030958,2]
[325286816,1714681884845,-1409.27,0.00030958,2]
[325286817,1714681884854,-618.93875623,0.00030958,2]
[325286818,1714681884865,-500.0,0.00030958,2]
[325286819,1714681884880,-1151.27,0.00030958,2]
[325286820,1714681884891,-500.0,0.00030958,2]
[325286821,1714681884901,-1870.41,0.00030958,2]
[325286822,1714681884912,-1236.16,0.00030958,2]
[325286823,1714681884923,-293.380816,0.00030958,7]
[325286824,1714681884933,-46463.02,0.00030958,2]
[325286825,1714681884943,-5613.43,0.00030958,2]
[325286826,1714681884953,-500.0,0.00030958,2]
[325286827,1714681884964,-1259.51,0.00030958,2]
[325286828,1714681884974,-528.27,0.00030958,2]
[325286829,1714681884984,-6011.21,0.00030958,2]
[325286830,1714681884994,-2018.75,0.00030958,2]
[325286831,1714681885004,-8499.02,0.00030958,2]
[325286832,1714681885014,-2522.13,0.00030958,2]
[325286833,1714681885025,-1737.86,0.00030958,2]
[325286834,1714681885035,-500.0,0.00030958,2]
[325286835,1714681885045,-500.0,0.00030958,2]
[325286836,1714681885055,-1824.17,0.00030958,2]
[325286837,1714681885065,-500.0,0.00030958,2]
[325286838,1714681885074,-4871.89,0.00030958,2]
[325286839,1714681885084,-1718.36,0.00030958,2]
[325286840,1714681885094,-696.34,0.00030958,2]
[325286841,1714681885103,-500.0,0.00030958,2]
[325286842,1714681885113,-2020.24,0.00030958,2]
[325286843,1714681885124,-2212.66,0.00030958,2]
[325286844,1714681885135,-787.34,0.00030958,2]
[325286845,1714681885146,-677.19,0.00030958,2]
[325286846,1714681885156,-500.0,0.00030958,2]
[325286847,1714681885169,-500.0,0.00030958,2]
[325286848,1714681885180,-6979.64,0.00030958,2]
[325286849,1714681885191,-750.16,0.00030958,2]
[325286850,1714681885201,-500.0,0.00030958,2]
[325286851,1714681885212,-500.0,0.00030958,2]
[325286852,1714681885222,-897.74,0.00030958,2]
[325286853,1714681885232,-500.0,0.00030958,2]
[325286854,1714681885246,-500.0,0.00030958,2]
[325286855,1714681885256,-9738.48,0.00030958,2]
[325286856,1714681885267,-1068.13,0.00030958,2]
[325286857,1714681885278,-2839.9,0.00030958,2]
[325286858,1714681885288,-2937.27,0.00030958,2]
[325286859,1714681885298,-1572.27,0.00030958,2]
[325286860,1714681885309,-1426.15,0.00030958,2]
[325286861,1714681885319,-500.0,0.00030958,2]
[325286862,1714681885328,-1820.59,0.00030958,2]
[325286863,1714681885338,-512.51926848,0.00030958,2]
[325286864,1714681885348,-500.0,0.00030958,2]
[325286865,1714681885358,-9459.31,0.00030958,2]
[325286866,1714681885368,-1155.68,0.00030958,2]
[325286867,1714681885380,-500.0,0.00030958,2]
[325286868,1714681885391,-500.0,0.00030958,2]
[325286869,1714681885402,-10251.1,0.00030958,2]
[325286870,1714681885412,-2623.56,0.00030958,2]
[325286871,1714681885423,-5611.28,0.00030958,2]
[325286872,1714681885433,-677.06,0.00030958,2]
[325286873,1714681885449,-1091.94,0.00030958,2]
[325286874,1714681885459,-4112.73,0.00030958,2]
[325286875,1714681885470,-855.52,0.00030958,2]
[325286876,1714681885483,-1940.15,0.00030958,2]
[325286877,1714681885494,-816.17,0.00030958,2]
[325286878,1714681885504,-1320.92,0.00030958,2]
[325286879,1714681885515,-725.07,0.00030958,2]
[325286880,1714681885526,-500.0,0.00030958,2]
[325286881,1714681885536,-837.26,0.00030958,2]
[325286882,1714681885547,-500.0,0.00030958,2]
[325286883,1714681885557,-593.27,0.00030958,2]
[325286884,1714681885567,-500.0,0.00030958,2]
[325286885,1714681885578,-12161.39,0.00030958,2]
[325286886,1714681885588,-2341.96,0.00030958,2]
[325286887,1714681885598,-2265.72,0.00030958,2]
[325286888,1714681885607,-516.62,0.00030958,2]
[325286889,1714681885617,-565.697927,0.00030959,14]
[325286890,1714681885628,-3525.3846375,0.00030979,2]
[325286891,1714681885640,-7816.1419257,0.00030979,2]
[325286892,1714681885653,-3213.5461452,0.00030979,2]
[325286893,1714681885664,-24582.5371368,0.00030979,2]
[325286894,1714681885674,-1414.7441031,0.00030979,2]
[325286895,1714681885684,-5039.2248961,0.00030979,2]
[325286896,1714681885694,-9454.2522284,0.00030979,2]
[325286897,1714681885704,-2651.8542966,0.00030979,2]
[325286898,1714681885715,-285.74137606,0.00030999,120]
[325286899,1714681885725,-2766.36,0.00030999,4]
[325286900,1714681885735,-2766.36,0.00030999,4]
[325286901,1714681885745,-2766.36,0.00030999,4]
[325286902,1714681885756,-2766.36,0.00030999,4]
[325286903,1714681885766,-2766.36,0.00030999,4]
[325286904,1714681885776,-2766.42,0.00030999,4]
[325286905,1714681885787,-50000.0,0.00031,11]
[325286906,1714681885797,-50000.0,0.00031,21]
[325286907,1714681885807,-2083.55213863,0.00031,3]
[325286908,1714681885817,-382280.64832041,0.00031,5]
[325286909,1714681887826,-500.0,0.00030136,2]
[325286910,1714681887836,-500.0,0.00030136,2]
[325286911,1714681887847,-500.0,0.00030136,2]
[325286912,1714681887857,-553.19,0.00030136,2]
[325286913,1714681887867,-500.0,0.00030136,2]
[325286914,1714681887878,-500.0,0.00030136,2]
[325286915,1714681887888,-500.0,0.00030136,2]
[325286916,1714681887898,-500.0,0.00030136,2]
[325286917,1714681887908,-500.0,0.0003041,2]
[325286918,1714681887918,-500.0,0.0003041,2]
[325286919,1714681887928,-553.19,0.0003041,2]
[325286920,1714681887939,-500.0,0.0003041,2]
[325286921,1714681887948,-500.0,0.0003041,2]
[325286922,1714681887959,-708.57,0.00030684,2]
[325286923,1714681887968,-500.0,0.00030684,2]
[325286924,1714681887978,-500.0,0.00030684,2]
[325286925,1714681887987,-553.19,0.00030684,2]
[325286926,1714681887997,-500.0,0.00030684,2]
[325286927,1714681888007,-3562.89,0.00030958,2]
[325286928,1714681888017,-708.57,0.00030958,2]
[325286929,1714681888287,-739.06,0.00030958,2]
[325286930,1714681888297,-500.0,0.00030958,2]
[325286931,1714681888307,-500.0,0.00030958,2]
[325286932,1714681888316,-553.19,0.00030958,2]
[325286933,1714681888326,-43558.15,0.00031,5]
[325286969,1714682887789,150.0,0.00010993,2]
[325286970,1714682889367,210.0,0.00012092,2]
[325286997,1714683032057,-921.96430113,0.00013298,2]
[325286998,1714683032155,-347.90802587,0.00013298,2]
[325286999,1714683032165,-677.79044,0.00013299,2]
[325287000,1714683032175,-192.79364736,0.00013299,2]
[325287001,1714683032184,-240.0,0.00013302,2]
[325287002,1714683032193,-182.44,0.00016712,2]
[325287003,1714683032203,-19290.49964677,0.000169,2]
[325287004,1714683032214,-2653.83265323,0.000169,2]
[325287005,1714683032224,-14892.20155525,0.00017,2]
[325287006,1714683032237,-781.88245008,0.00017,2]
[325287007,1714683032252,-3917.58705758,0.00017,2]
[325287008,1714683032262,-1850.50446597,0.00019726,2]
[325287009,1714683032273,-3377.228,0.00019726,2]
[325287010,1714683032286,-4772.25753403,0.00019726,2]
[325287011,1714683032296,-50.43246597,0.00019726,2]
[325287014,1714683032325,-449.55753403,0.00019726,2]
[325287015,1714683032335,-403.47680197,0.0002,4]
[325287017,1714683032347,-340.52158781,0.0002,4]
[325287020,1714683032360,-3529.47465,0.0002,4]
[325287022,1714683032372,-2926.52696022,0.0002,4]
[325287024,1714683032382,-150.99,0.0002,2]
[325287026,1714683032391,-337.49,0.0002,2]
[325287028,1714683032400,-150.99,0.0002,2]
[325287030,1714683032410,-155.66974344,0.00020878,2]
[325287032,1714683032420,-155.0,0.000209,2]
[325287033,1714683032429,-164.06,0.00021644,2]
[325287034,1714683032438,-153.99824276,0.0002211,2]
[325287035,1714683032447,-151.8470663,0.00022869,2]
[325287037,1714683032456,-155.99809518,0.00023372,2]
[325287039,1714683032466,-151.8470663,0.00023476,2]
[325287041,1714683032476,-153.18154047,0.00025047,2]
[325287043,1714683032485,-153.63043451,0.00025197,2]
[325287045,1714683032495,-250.0,0.00025481,2]
[325287047,1714683032504,-151.8470663,0.00025542,2]
[325287049,1714683032514,-560.39,0.00025685,2]
[325287051,1714683032523,-1037.89,0.00025698,2]
[325287052,1714683032533,-157.29,0.00025807,120]
[325287053,1714683032544,-498.453,0.00025807,2]
[325287054,1714683032554,-155.40440602,0.00025823,2]
[325287055,1714683032564,-668.5,0.00025839,2]
[325287056,1714683032574,-436.1,0.00025925,2]
[325287057,1714683032583,-1542.62,0.00025991,2]
[325287058,1714683032593,-592.7763785,0.00026094,2]
[325287063,1714683038096,-256.28643193,0.00026094,2]
[325287064,1714683038107,-891.92718957,0.00026094,2]
[325287065,1714683038117,-238.34882444,0.00026111,2]
[325287066,1714683038128,-384.2290936,0.00026111,2]
[325287067,1714683038139,-868.61208196,0.00026111,2]
[325287068,1714683038149,-197.02,0.00026125,2]
[325287069,1714683038158,-155.66974344,0.000262,2]
[325287070,1714683038167,-1054.2882262,0.000262,2]
[325287071,1714683038182,-1451.9604688,0.000262,2]
[325287072,1714683038191,-750.0,0.00026217,2]
[325287073,1714683038200,-869.0,0.000263,3]
[325287074,1714683038210,-1500.0,0.000267,2]
[325287075,1714683038219,-167.0,0.00026883,2]
[325287076,1714683038228,-153.63043451,0.0002696,2]
[325287077,1714683038238,-852.35824385,0.00027,2]
[325287078,1714683038258,-334.94556532,0.00027,2]
[325287079,1714683038314,-812.69619083,0.00027,2]
[325287080,1714683038327,-2000.0,0.0002701,2]
[325287081,1714683038336,-2000.0,0.0002702,2]
[325287082,1714683038346,-2000.0,0.0002703,2]
[325287083,1714683038355,-2000.0,0.0002704,2]
[325287084,1714683038365,-3098.30380917,0.0002705,2]
[325287085,1714683038380,-441.20052183,0.0002705,2]
[325287086,1714683038390,-56.59927547,0.00027162,2]
[325287087,1714683038422,-441.85372453,0.00027162,2]
[325287088,1714683038431,-238.38999715,0.000272,2]
[325287089,1714683038443,-1261.61000285,0.000272,2]
[325287090,1714683038452,-150.0,0.000274,5]
[325287091,1714683038462,-287.58,0.00027656,10]
[325287092,1714683038471,-2000.0,0.00027666,30]
[325287093,1714683038481,-2000.0,0.00027666,30]
[325287094,1714683038490,-1677.699999,0.00027666,30]
[325287095,1714683038500,-2000.0,0.00027666,30]
[325287096,1714683038510,-2000.0,0.00027666,30]
[325287097,1714683038522,-164.06,0.00027714,2]
[325287098,1714683038532,-167.0,0.00027723,2]
[325287099,1714683038541,-151.8470663,0.00027799,2]
[325287100,1714683038552,-150.0,0.000279,5]
[325287101,1714683038563,-150.0,0.000284,5]
[325287102,1714683038576,-498.453,0.00028659,2]
[325287103,1714683038588,-560.39,0.00028896,2]
[325287105,1714683038597,-150.0,0.000289,6]
[325287106,1714683038606,-396.311705,0.00029,2]
[325287107,1714683038615,-1007.22,0.00029,2]
[325287108,1714683038623,-302.86,0.00029,2]
[325287109,1714683038637,-158.15323032,0.00029086,2]
[325287110,1714683038645,-2055.5099,0.00029122,2]
[325287111,1714683038655,-210.1603,0.00029122,2]
[325287112,1714683038664,-436.1,0.00029165,2]
[325287113,1714683038674,-151.8470663,0.00029204,2]
[325287114,1714683038684,-167.0,0.00029248,2]
[325287115,1714683038696,-345.09,0.00029369,10]
[325287116,1714683038706,-462.0,0.00029379,2]
[325287117,1714683038716,-2297.0,0.00029379,2]
[325287118,1714683038726,-971.0,0.00029379,2]
[325287119,1714683038735,-1394.0,0.00029379,2]
[325287120,1714683038745,-1258.0,0.00029379,2]
[325287121,1714683038760,-542.0,0.00029379,2]
[325287122,1714683038772,-1228.0,0.00029379,2]
[325287123,1714683038782,-610.0,0.00029379,2]
[325287124,1714683038792,-808.0,0.00029379,2]
[325287125,1714683038803,-208.0,0.00029379,2]
[325287126,1714683038812,-437.0,0.00029379,2]
[325287127,1714683038824,-1861.0,0.00029379,2]
[325287128,1714683038833,-3132.0,0.00029379,2]
[325287129,1714683038843,-2448.0,0.00029379,2]
[325287130,1714683038852,-150.0,0.00029379,2]
[325287131,1714683038862,-1476.0,0.00029379,2]
[325287132,1714683038871,-421.0,0.00029379,2]
[325287133,1714683038879,-150.0,0.00029379,2]
[325287134,1714683038889,-215.0,0.00029379,2]
[325287135,1714683038897,-1642.0,0.00029379,2]
[325287136,1714683038906,-443.0,0.00029379,2]
[325287137,1714683038915,-1139.0,0.00029379,2]
[325287138,1714683038924,-151.162,0.00029379,2]
[325287139,1714683038935,-150.0,0.00029379,2]
[325287140,1714683038944,-151.0,0.00029379,2]
[325287141,1714683038953,-150.0,0.00029379,2]
[325287142,1714683038962,-1056.0,0.00029379,2]
[325287143,1714683038972,-150.0,0.000294,6]
[325287144,1714683038982,-240.59,0.00029621,120]
[325287145,1714683038991,-904.1,0.00029621,2]
[325287146,1714683039000,-250.0,0.00029621,2]
[325287147,1714683039010,-227.72,0.00029671,120]
[325287148,1714683039020,-150.42056133,0.00029775,2]
[325287149,1714683039029,-2500.0,0.00029797,2]
[325287150,1714683039038,-239.65,0.00029885,10]
[325287151,1714683039048,-5383.04,0.00029889,2]
[325287152,1714683039057,-5383.04,0.00029889,2]
[325287153,1714683039066,-5383.04,0.00029889,2]
[325287154,1714683039076,-5383.04,0.00029889,2]
[325287155,1714683039085,-5383.04,0.00029889,2]
[325287156,1714683039094,-1647.79784255,0.00029895,2]
[325287157,1714683039103,-538.3518557,0.00029895,2]
[325287158,1714683039113,-146.0760706,0.00029897,2]
[325287159,1714683039126,-62.27981442,0.00029897,2]
[325287160,1714683039135,-282.63727663,0.00029898,2]
[325287161,1714683039145,-546.44290895,0.00029899,2]
[325287162,1714683039156,-1165.6,0.00029899,2]
[325287163,1714683039171,-296.28607569,0.00029899,2]
[325287164,1714683039182,-574.51100007,0.00029899,2]
[325287165,1714683039193,-490.959078,0.00029899,2]
[325287189,1714683040130,-8562.29469653,0.00029899,2]
[325287190,1714683040145,-6513.81130584,0.00029899,2]
[325287191,1714683040156,-2920.30051014,0.00029899,2]
[325287192,1714683040168,-945.85886152,0.00029899,2]
[325287193,1714683040185,-721.827774,0.00029899,2]
[325287194,1714683040252,-740.83310956,0.00029899,2]
[325287195,1714683040263,-596400.0,0.00029899,2]
[325287196,1714683040274,-1772.89252664,0.00029899,2]
[325287197,1714683040286,-2191.8796206,0.00029899,2]
[325287198,1714683040299,-988.17811479,0.00029899,2]
[325287199,1714683040310,-401.71568591,0.00029899,2]
[325287200,1714683040442,-61505.64502281,0.00029899,2]
[325287201,1714683040451,-80505.4419,0.000299,2]
[325287202,1714683040460,-500.0,0.000299,2]
[325287203,1714683040469,-23093.6843,0.000299,2]
[325287204,1714683040478,-180.46668736,0.000299,2]
[325287205,1714683040487,-150.0,0.000299,6]
[325287206,1714683040496,-167.8402344,0.000299,2]
[325287207,1714683040505,-302.86,0.0002994,2]
[325287208,1714683040514,-93786.59324651,0.00029999,5]
[325287209,1714683040523,-50000.0,0.0003,10]
[325287210,1714683040533,-50000.0,0.0003,5]
[325287211,1714683040542,-1212.59388611,0.00030036,2]
[325287212,1714683040551,-228.66632502,0.00030036,2]
[325287213,1714683040560,-191.62281446,0.00030036,2]
[325287214,1714683040572,-157.29,0.00030108,120]
[325287215,1714683040581,-1007.22,0.0003011,2]
[325287216,1714683040591,-186.12527584,0.00030134,4]
[325287217,1714683040601,-157.15416355,0.00030134,4]
[325287218,1714683040610,-3072.92794834,0.00030134,7]
[325287219,1714683040619,-1759.40126551,0.00030135,4]
[325287220,1714683040629,-804.97132105,0.00030135,4]
[325287221,1714683040638,-888.69,0.00030135,3]
[325287222,1714683040648,-956.92,0.00030136,2]
[325287223,1714683040657,-656.05,0.00030136,2]
[325287224,1714683040666,-500.0,0.00030136,2]
[325287225,1714683040675,-500.0,0.00030136,2]
[325287226,1714683040683,-500.0,0.00030136,2]
[325287227,1714683040693,-500.0,0.00030136,2]
[325287228,1714683040702,-527.25163224,0.00030136,2]
[325287229,1714683040712,-500.0,0.00030136,2]
[325287230,1714683040721,-500.0,0.00030136,2]
[325287231,1714683040729,-500.0,0.00030136,2]
[325287233,1714683040739,-500.0,0.00030136,2]
[325287235,1714683040748,-843.96,0.00030136,2]
[325287236,1714683040759,-500.0,0.00030136,2]
[325287238,1714683040772,-500.0,0.00030136,2]
[325287239,1714683040781,-500.0,0.00030136,2]
[325287240,1714683040791,-513.03611816,0.00030136,2]
[325287241,1714683040800,-500.0,0.00030136,2]
[325287242,1714683040810,-907.78,0.00030136,2]
[325287243,1714683040821,-500.0,0.00030136,2]
[325287244,1714683040830,-500.0,0.00030136,2]
[325287245,1714683040841,-500.0,0.00030136,2]
[325287246,1714683040850,-500.0,0.00030136,2]
[325287247,1714683040859,-739.05,0.00030136,2]
[325287248,1714683040871,-500.0,0.00030136,2]
[325287249,1714683040881,-500.0,0.00030136,2]
[325287250,1714683040891,-500.0,0.00030136,2]
[325287251,1714683040900,-500.0,0.00030136,2]
[325287252,1714683040910,-504.58,0.00030136,2]
[325287253,1714683040919,-500.0,0.00030136,2]
[325287254,1714683040928,-500.0,0.00030136,2]
[325287255,1714683040938,-500.0,0.00030136,2]
[325287256,1714683040947,-500.0,0.00030136,2]
[325287257,1714683040956,-500.0,0.00030136,2]
[325287258,1714683040965,-533.53,0.00030136,2]
[325287259,1714683040974,-500.0,0.00030136,2]
[325287260,1714683040983,-500.0,0.00030136,2]
[325287261,1714683040992,-500.0,0.00030136,2]
[325287262,1714683041001,-500.0,0.00030136,2]
[325287263,1714683041010,-1170.06,0.00030136,2]